[Event "45th FIDE Olympiad 2024"]
[Site "Budapest"]
[Date "2024.09.18"]
[Round "7.42"]
[White "Thabang, Mphane"]
[Black "Yeung, Jason"]
[Result "0-1"]
[WhiteElo "1799"]
[BlackElo "1993"]
[PlyCount "98"]
[EventDate "2024.09.05"]
[EventType "team-tourn"]
[EventCountry "HUN"]
[WhiteTeam "Lesotho"]
[BlackTeam "Suriname"]
[WhiteTeamCountry "LES"]
[TimeControl "40/5400+30:1800+30"]

1. Nf3 Nf6 2. c4 e6 3. g3 d5 4. Bg2 c6 5. O-O dxc4 6. a4 Be7 7. Na3 O-O 8. Nxc4 b6 9. Nfe5 Qc7 10. d4 Bb7 11. Bf4 Nh5 12. Bd2 Rd8 13. e4 Nf6 14. Bf4 Qc8 15. a5 b5 16. Ne3 a6 17. g4 c5 18. d5 exd5 19. exd5 g6 20. h4 Nfd7 21. Nf3 Nf6 22. Ne5 Nfd7 23. Nxd7 Qxd7 24. g5 Bf8 25. Rc1 Qc8 26. Ng4 Nd7 27. Bh3 Bg7 28. Qd2 c4 29. Bd6 c3 30. Qe3 Qc4 31. Rfd1 Bxd5 32. f3 Re8 33. Bf1 Qc6 34. Be7 Bxf3 35. Rxd7 Qxd7 36. Nf6+ Bxf6 37. gxf6 Qg4+ 38. Kf2 Qh5 39. Rxc3 Bd5 40. Qg5 Qxg5 41. hxg5 Rac8 42. Rd3 Rc2+ 43. Be2 Bc4 44. Re3 Rxb2 45. Kf3 Rxe2 46. Rxe2 Bxe2+ 47. Kxe2 Rc8 48. Kd3 Rc4 49. Bd6 Rg4 {0-} 0-1

[Event "45th FIDE Olympiad 2024"]
[Site "Budapest"]
[Date "2024.09.18"]
[Round "7.43"]
[White "Lokander, Martin"]
[Black "Donchenko, Alexander"]
[Result "1/2-1/2"]
[ECO "E49"]
[WhiteElo "2469"]
[BlackElo "2638"]
[Annotator "TA"]
[PlyCount "172"]
[EventDate "2024.09.05"]
[EventType "team-tourn"]
[EventCountry "HUN"]
[SourceTitle "playchess.com"]
[Source "ChessBase"]
[SourceQuality "1"]
[WhiteTeam "Sweden"]
[BlackTeam "Germany"]
[WhiteTeamCountry "SWE"]
[BlackTeamCountry "GER"]
[TimeControl "40/5400+30:1800+30"]

{[%evp 19,172,-8,-1,-5,-6,-18,-3,-8,-6,0,6,0,0,0,0,5,30,23,35,20,30,35,25,43,38,31,57,54,74,54,109,100,108,91,96,96,108,115,107,108,108,104,113,83,84,84,112,108,112,101,121,121,202,136,126,121,121,113,140,118,194,187,178,179,454,447,447,288,447,447,431,431,1544,1531,1609,1609,1334,1056,822,822,814,794,600,462,4582,6283,3622,3080,9165,7998,8150,6164,4961,4011,4011,1681,2024,1788,707,9826,10779,10772,9645,9524,5827,162,8850,4877,8146,0,7066,550,2602,2077,1090,0,0,0,0,0,0,0,0,0,0,0,104,122,147,147,147,0,0,0,0,0,0,0,0,0,0,0,0,0,0,0,0,0,57,78,133,0,0,0,0]} 1. d4 {[%emt 0:00:05]} Nf6 {[%emt 0:00:06]} 2. c4 {[%emt 0:00:11]} e6 {[%emt 0:00:07]} 3. Nc3 {[%emt 0:00:18]} Bb4 {[%emt 0:00:15]} 4. e3 {[%emt 0:00:22]} O-O {[%emt 0:00:23]} 5. Bd3 {[%emt 0:00:14]} d5 {[%emt 0:01:00]} 6. a3 {[%emt 0:00:24]} Bxc3+ {[%emt 0:00:56]} 7. bxc3 {[%emt 0:00:06]} dxc4 {[%emt 0:00:06]} 8. Bxc4 {[%emt 0:00:05]} c5 {[%emt 0:00:06]} 9. Ne2 {[%emt 0:01:58]} Qc7 {[%emt 0:00:21]} 10. Bd3 {[%emt 0:00:29]} Nc6 {[%emt 0:01:11]} 11. O-O {[%emt 0:01:35]} e5 {[%emt 0:02:06]} 12. e4 {[%emt 0:02:28]} cxd4 {[%emt 0:04:11]} 13. cxd4 {[%emt 0:00:05]} exd4 {[%emt 0:00:34]} 14. f4 {[%emt 0:00:21]} Ng4 {[%emt 0:08:43]} 15. h3 {[%emt 0:05:05]} Ne3 {[%emt 0:00:48]} 16. Bxe3 {[%emt 0:00:05]} dxe3 {[%emt 0:00:05]} 17. Qc1 {[%emt 0:00:13]} Be6 {[%emt 0:08:03]} 18. Qxe3 {[%emt 0:02:09]} f6 {[%emt 0:01:44]} 19. Rfc1 {[%emt 0:03:21]} Rfd8 {[%emt 0:05:04] Prevents Nd4.} 20. Bb5 {[%emt 0:04:03]} Rac8 {[%emt 0:05:14]} 21. Bxc6 {[%emt 0:02:25]} bxc6 {[%emt 0:00:07]} 22. Rc5 {[%emt 0:00:17]} Qe7 {[%emt 0:13:09][%cal Od8d3]} 23. Rac1 {[%emt 0:03:33][%cal Oe2d4]} Re8 {[%emt 0:05:16][%cal Oe6d5]} 24. Nd4 {[%emt 0:12:15]} ({Of course not} 24. Rxc6 Rxc6 25. Rxc6 Bd5 $11) 24... Bd7 {[%emt 0:12:53]} (24... Bd5 $1 $14) 25. e5 $16 {[%emt 0:01:54]} (25. Nxc6 $6 Bxc6 26. Rxc6 Rxc6 27. Rxc6 Qxe4 28. Qb3+ Kh8 $11) 25... h6 {[%emt 0:01:32]} 26. Qg3 {[%emt 0:09:04]} (26. Nxc6 $6 Bxc6 27. Rxc6 Rxc6 28. Rxc6 fxe5 $14) 26... Qf7 {[%emt 0:04:06]} 27. Nxc6 {[%emt 0:04:40] White is much more active.} Bxc6 {[%emt 0:00:27]} 28. Rxc6 {[%emt 0:00:05]} Rxc6 {[%emt 0:00:06]} 29. Rxc6 {[%emt 0:00:03]} fxe5 {[%emt 0:00:10]} 30. fxe5 {[%emt 0:00:09][%mdl 4096] Endgame. KQR-KQR} ({Reject} 30. Rxh6 $6 exf4 31. Qg6 Qxg6 32. Rxg6 f3 $11) 30... Qd5 {[%emt 0:07:48]} 31. Rxh6 {[%emt 0:02:25][%cal Oe5e6]} Rxe5 {[%emt 0:01:20]} 32. Rg6 {[%emt 0:02:22] Inhibits Rg5.} Re7 {[%emt 0:01:05]} 33. Kh2 {[%emt 0:00:47]} Qd4 {[%emt 0:09:43]} 34. Qd6 {[%emt 0:05:20]} Qe4 {[%emt 0:01:54]} 35. Rg5 {[%emt 0:02:04]} Rf7 {[%emt 0:01:35]} (35... Qe3 $16 {was called for.} 36. Qd5+ Re6) 36. Qb8+ {[%emt 0:03:27]} Kh7 {[%emt 0:00:24]} 37. Rh5+ {[%emt 0:00:24]} Kg6 {[%emt 0:00:02]} 38. Ra5 $36 {[%emt 0:00:34][%mdl 2048] White is really pushing.} Kh7 {[%emt 0:01:36] Inhibits Qg3.} 39. Qe5 {[%emt 0:05:18] Dodges Rf5} ({Don't play} 39. Rxa7 $6 Rxa7 40. Qxa7 Qf4+ 41. Kh1 Qc1+ 42. Qg1 Qxa3 $11) 39... Qxe5+ {[%emt 0:02:03]} (39... Qa8 $16 {was worth a try.} 40. Rd5 Re7 41. Qxe7 Qxd5) 40. Rxe5 {[%emt 0:00:05] KR-KR} Rf6 {[%emt 0:00:09]} 41. Ra5 {[%emt 0:34:28] Repels Ra6} a6 {[%emt 0:30:32]} (41... Rf7 42. h4 Rd7) 42. h4 $18 {[%emt 0:03:20]} Kh6 {[%emt 0:01:10]} 43. g4 {[%emt 0:04:15]} Rc6 {[%emt 0:00:50]} (43... Re6 {was necessary.} 44. a4 Rd6) 44. h5 {[%emt 0:01:19]} g6 {[%emt 0:01:30]} 45. hxg6 {[%emt 0:02:29]} Kxg6 {[%emt 0:00:15]} (45... Rc3 $142 46. Rxa6 Kg7) 46. Kg3 {[%emt 0:00:06]} Kg7 {[%emt 0:00:00]} 47. a4 {[%emt 0:00:00]} Rd6 {[%emt 0:00:00]} 48. Kh4 {[%emt 0:00:00]} Rh6+ {[%emt 0:00:00]} 49. Kg5 {[%emt 0:00:00]} Rg6+ {[%emt 0:00:00]} 50. Kf5 {[%emt 0:00:00]} Rf6+ {[%emt 0:00:00]} 51. Ke4 {[%emt 0:00:00] [#] Hoping for g5.} Rg6 {[%emt 0:00:00]} (51... Rc6 $142 52. Kf5 Rf6+ 53. Kg5 Rg6+ 54. Kh4 Rh6+ 55. Kg3 Rc6) 52. g5 {[%emt 0:00:00]} Rc6 {[%emt 0:00:00]} 53. Kf5 {[%emt 0:00:00]} Rc1 {[%emt 0:00:00]} 54. Rxa6 {[%emt 0:00:00]} Rf1+ {[%emt 0:00:00]} 55. Ke5 {[%emt 0:00:00]} Rg1 {[%emt 0:00:00]} 56. Kf4 {[%emt 0:00:00] [#] a5 is the strong threat.} Rf1+ {[%emt 0:00:00]} 57. Ke3 {[%emt 0:00:00]} (57. Ke4 $142 Re1+ 58. Kf5 Rf1+ 59. Ke6) 57... Rg1 {[%emt 0:01:05]} 58. Ra5 {[%emt 0:00:00]} Rg4 {[%emt 0:01:14]} 59. Kf3 {[%emt 0:00:00]} Rb4 {[%emt 0:00:25]} 60. Ra6 {[%emt 0:00:00]} Rc4 {[%emt 0:01:18]} 61. a5 {[%emt 0:00:00]} Rd4 {[%emt 0:01:31]} 62. g6 $2 {[%emt 0:04:18]} (62. Ra8 Ra4 63. Ra6 Ra3+ 64. Kf4) 62... Rd5 {[%emt 0:01:56]} 63. Kf4 {[%emt 0:00:59] Prevents Re5} Rc5 {[%emt 0:00:11]} 64. Ke4 {[%emt 0:05:45]} Rg5 {[%emt 0:01:07]} 65. Kd4 {[%emt 0:00:06]} (65. Kd3 $142 {And now Ra8 would win.} Rg3+ 66. Kd2) 65... Rg4+ {[%emt 0:01:17]} 66. Kc5 {[%emt 0:00:06] White threatens Rc6 and mate.} Rg5+ {[%emt 0:00:03]} 67. Kb6 $2 {[%emt 0:00:35]} (67. Kc4 $18 Rg4+ 68. Kd5 Rg5+ 69. Ke4) 67... Rxg6+ $11 {[%emt 0:00:02]} 68. Kb7 {[%emt 0:00:06] Threatening mate with Rxg6+.} (68. Kb5 $5 Rg5+ $8 69. Kb4 Rg4+ 70. Kb5 Rg5+ 71. Kb6 Rg6+ 72. Kb7 $11) 68... Rg5 {[%emt 0:00:04]} 69. Ra7 {[%emt 0:00:48] Strongly threatening Kb6+.} Kh6 {[%emt 0:01:39]} 70. Ra6+ {[%emt 0:01:38]} Kh7 {[%emt 0:00:15]} 71. Ra8 {[%emt 0:00:09]} Rg7+ {[%emt 0:00:40]} 72. Kc6 {[%emt 0:00:04]} (72. Ka6 $5 Rg6+ $8 73. Kb5 Rg5+ 74. Kc6 $11) 72... Rg6+ {[%emt 0:00:09]} (72... Rg5 $11 {remains equal.}) 73. Kd5 {[%emt 0:00:04]} Rg5+ {[%emt 0:00:06]} 74. Ke6 {[%emt 0:00:04]} Rc5 {[%emt 0:01:48]} 75. a6 {[%emt 0:00:28]} (75. Kd6 $16 Rf5 76. Kc7) 75... Rc6+ {[%emt 0:00:03]} 76. Kd5 {[%emt 0:00:19]} Rf6 {[%emt 0:00:11]} 77. Ke5 {[%emt 0:00:19]} Rb6 {[%emt 0:00:07]} 78. Kd5 {[%emt 0:00:38]} Kg7 {[%emt 0:00:27]} 79. Kc5 {[%emt 0:00:10]} (79. a7 $5 Ra6 $8 80. Kc5 $11) 79... Rf6 {[%emt 0:00:02]} 80. Ra7+ {[%emt 0:00:11]} Kg6 {[%emt 0:00:24]} 81. Kd5 {[%emt 0:00:20]} Rf5+ {[%emt 0:00:25]} 82. Ke4 {[%emt 0:00:10][%cal Oa7g7]} Rf6 {[%emt 0:00:02]} 83. Ra8 {[%emt 0:00:08]} (83. Rb7 $11 Rxa6 84. Rb2) 83... Kg7 $14 {[%emt 0:00:08]} 84. Ke5 {[%emt 0:00:05][%cal Oa8g8] Rg8+! would kill now.} Rb6 {[%emt 0:00:18]} (84... Rc6 $142) 85. a7 {[%emt 0:00:04]} (85. Kd5 $16) 85... Ra6 $11 {[%emt 0:00:04]} 86. Rd8 {[%emt 0:00:04]} Rxa7 {[%emt 0:00:04] Weighted Error Value: White=0.15 (very precise) /Black=0.27 (precise) .  Mistake:       	White=3     	Black=8      Inaccurate:     	White=2     	Black=3      OK:         	White=17    	Black=17     Best:        	---       	Black=4} 1/2-1/2

[Event "45th FIDE Olympiad 2024"]
[Site "Budapest"]
[Date "2024.09.18"]
[Round "7.43"]
[White "Chashawa, Shaief"]
[Black "Karabo, Mokete"]
[Result "0-1"]
[WhiteElo "1825"]
[BlackElo "1836"]
[PlyCount "154"]
[EventDate "2024.09.05"]
[EventType "team-tourn"]
[EventCountry "HUN"]
[WhiteTeam "Suriname"]
[BlackTeam "Lesotho"]
[BlackTeamCountry "LES"]
[TimeControl "40/5400+30:1800+30"]

1. e4 c5 2. Nf3 d6 3. d4 cxd4 4. Nxd4 Nf6 5. Nc3 a6 6. Bg5 e6 7. Qd2 h6 8. Bxf6 Qxf6 9. O-O-O Nc6 10. Nxc6 bxc6 11. Bc4 Qd8 12. f4 Be7 13. Kb1 Rb8 14. b3 Qa5 15. Ne2 Qa3 16. Ng3 d5 17. Be2 a5 18. Qd4 Bf6 19. e5 Be7 20. Qb2 Qb4 21. Qd4 c5 22. Qd2 c4 23. Qxb4 Rxb4 24. c3 Rb6 25. Kc2 cxb3+ 26. axb3 Bd7 27. Ra1 a4 28. bxa4 O-O 29. a5 Rbb8 30. Rhb1 Bc5 31. Nf1 Bc6 32. Bf3 Bb5 33. a6 Ba7 34. Kd2 Rb6 35. Be2 Bc6 36. Rxb6 Bxb6 37. Ne3 Rd8 38. Nc2 d4 39. Bf3 Bxf3 40. gxf3 dxc3+ 41. Kxc3 f6 42. Ra4 fxe5 43. fxe5 Kh7 44. Rc4 Ba5+ 45. Kb3 Rd3+ 46. Ka4 Bb6 47. f4 Kg6 48. Kb5 Bg1 49. Nb4 Rb3 50. Ka4 Rb2 51. Rc2 Rxc2 52. Nxc2 Kf5 53. Kb5 Kxf4 54. Nb4 Ba7 55. Nd3+ Ke4 56. Kc4 g5 57. Nb4 h5 58. Nc6 Bb6 59. Kb5 Be3 60. Na5 g4 61. Kc6 Kd3 62. Nb7 Kc4 63. Nd8 h4 64. Nxe6 g3 65. hxg3 h3 66. Nf4 h2 67. e6 Bxf4 68. gxf4 h1=Q+ 69. Kd7 Kc5 70. e7 Qc6+ 71. Kd8 Qd6+ 72. Ke8 Qxa6 73. f5 Qf6 74. Kd7 Qd6+ 75. Ke8 Kd5 76. Kf7 Qd7 77. f6 Qe6+ {0-} 0-1

[Event "45th FIDE Olympiad 2024"]
[Site "Budapest"]
[Date "2024.09.18"]
[Round "7.44"]
[White "Svane, Frederik"]
[Black "Pantzar, Milton"]
[Result "1-0"]
[ECO "C55"]
[WhiteElo "2640"]
[BlackElo "2437"]
[Annotator "TA"]
[PlyCount "109"]
[EventDate "2024.09.05"]
[EventType "team-tourn"]
[EventCountry "HUN"]
[SourceTitle "playchess.com"]
[Source "ChessBase"]
[SourceQuality "1"]
[WhiteTeam "Germany"]
[BlackTeam "Sweden"]
[WhiteTeamCountry "GER"]
[BlackTeamCountry "SWE"]
[TimeControl "40/5400+30:1800+30"]

{[%evp 25,109,77,83,80,89,75,95,62,56,64,82,79,73,49,60,60,84,52,63,62,86,82,86,67,73,68,76,58,95,96,95,86,95,92,125,127,126,123,133,128,135,145,131,90,184,197,277,268,258,254,293,321,323,318,306,323,318,312,310,306,278,297,370,360,367,352,350,327,447,433,435,412,531,411,660,480,976,981,1324,1331,826,727,29986,29987,29987,29988]} 1. e4 {[%emt 0:00:06]} e5 {[%emt 0:00:10]} 2. Nf3 {[%emt 0:00:09]} Nc6 {[%emt 0:00:10]} 3. Bc4 {[%emt 0:00:05]} Nf6 {[%emt 0:00:09]} 4. d3 {[%emt 0:00:06]} Be7 {[%emt 0:00:26]} 5. Nc3 {[%emt 0:00:08]} d6 {[%emt 0:04:58]} 6. a3 {[%emt 0:00:10]} O-O {[%emt 0:01:03]} 7. O-O {[%emt 0:00:05]} h6 {[%emt 0:05:21] C55: Two Knights: 4 d3, 4 d4 exd4 5 e5 and Max Lange Attack.} 8. h3 {[%emt 0:00:54]} Re8 {[%emt 0:02:34]} 9. Be3 {[%emt 0:00:06]} Bf8 {[%emt 0:03:28]} 10. Nh2 $5 {[%emt 0:05:49][%mdl 4] A promising side line.} Ne7 {[%emt 0:10:04]} 11. Qf3 {[%emt 0:07:28]} Ng6 $146 {[%emt 0:11:51]} ({Predecessor:} 11... c6 12. Bxh6 d5 13. exd5 cxd5 14. Bb5 e4 15. dxe4 dxe4 16. Nxe4 Nxe4 17. Rad1 Qa5 18. Bxe8 gxh6 19. Qxf7+ {1-0 Raymer,E-Cameanii,V Keres Memorial 30th 2005 (7)}) 12. Ng4 {[%emt 0:00:06]} Bxg4 {[%emt 0:07:26]} 13. hxg4 {[%emt 0:00:23]} c6 {[%emt 0:01:23]} 14. g5 {[%emt 0:03:36]} hxg5 {[%emt 0:00:37]} 15. Bxg5 {[%emt 0:00:09]} Be7 {[%emt 0:03:44]} 16. Nd1 {[%emt 0:15:04]} Nf8 {[%emt 0:13:37]} 17. Ne3 {[%emt 0:00:08]} Ne6 {[%emt 0:00:42]} 18. Bxe6 {[%emt 0:07:28]} fxe6 {[%emt 0:00:07]} 19. Bxf6 {[%emt 0:00:03]} Bxf6 {[%emt 0:02:34]} 20. g3 {[%emt 0:00:15]} Bg5 {[%emt 0:04:34]} 21. Ng4 {[%emt 0:00:38]} Rf8 {[%emt 0:03:08]} 22. Qe2 {[%emt 0:00:08]} g6 {[%emt 0:05:32]} 23. Kg2 {[%emt 0:00:39]} Kg7 {[%emt 0:00:41]} 24. Qe1 {[%emt 0:16:53]} (24. Rh1 {feels hotter.} Qe7 25. b4 Rh8 26. c4) 24... Qe7 {[%emt 0:08:18]} 25. Qc3 {[%emt 0:01:35]} (25. Rh1 {is more complex.} a6 26. c4 Rh8 27. Qc3) 25... Bf6 {[%emt 0:00:25]} 26. a4 {[%emt 0:02:50]} (26. Rh1 {with more complications.} a6 27. a4 Rh8 28. b4) 26... c5 {[%emt 0:06:46]} 27. a5 {[%emt 0:01:12]} Rac8 {[%emt 0:01:21]} 28. Rh1 {[%emt 0:02:41]} Rh8 {[%emt 0:00:46]} 29. Rxh8 {[%emt 0:00:07]} Rxh8 {[%emt 0:00:23]} 30. b4 {[%emt 0:00:04]} Rc8 {[%emt 0:02:01]} 31. Rb1 {[%emt 0:00:06]} Rc7 {[%emt 0:00:56]} 32. bxc5 {[%emt 0:00:54]} Rxc5 {[%emt 0:00:13]} 33. Qb2 {[%emt 0:00:06]} Rc7 {[%emt 0:00:25]} 34. Rh1 {[%emt 0:04:32]} Qd8 {[%emt 0:00:58]} (34... Kg8 $16 35. c4 Bg7) 35. f4 $18 {[%emt 0:02:06]} Rf7 {[%emt 0:00:26]} (35... exf4 $2 36. Nxf6 e5 (36... Qxf6 $2 37. Rh7+ Kxh7 38. Qxf6 $18) 37. Nd5 $18) (35... b6 $142 36. fxe5 (36. axb6 axb6 37. fxe5 Bxe5 $18) 36... Bxe5 37. Nxe5 Qf6 38. axb6 axb6) 36. fxe5 $18 {[%emt 0:00:37]} dxe5 {[%emt 0:00:12]} 37. Rf1 {[%emt 0:02:14]} Qc7 {[%emt 0:00:38]} 38. Qc1 {[%emt 0:00:28]} g5 {[%emt 0:00:17]} 39. Nxf6 {[%emt 0:02:48]} Rxf6 {[%emt 0:00:05]} 40. Qxg5+ {[%emt 0:00:03]} Rg6 {[%emt 0:00:07]} 41. Qd2 {[%emt 0:30:05]} Kg8 {[%emt 0:08:44]} 42. Rf2 {[%emt 0:00:00]} Qc5 {[%emt 0:02:53]} 43. Qe2 {[%emt 0:00:00]} Qe7 {[%emt 0:05:55]} 44. Qe3 {[%emt 0:00:00]} Qg7 {[%emt 0:01:25]} 45. Rf3 {[%emt 0:00:00]} (45. Qxa7 Rxg3+ 46. Kf1 Rg1+ 47. Ke2 Qg4+ 48. Kd2 Qd1+ 49. Kc3 Qa1+ 50. Kc4 Qa2+ 51. Kc3 (51. Kc5 Qa3+ 52. Kc4 Qa2+ 53. Kc5 Qa3+ 54. Kc4 Qa4+ 55. Kc3 Qa1+ 56. Kc4 Qa2+ $11) 51... Qa3+ 52. Kc4 Qa4+ 53. Kc3 Qa1+ (53... Qa3+ 54. Kc4 $11) 54. Kc4 Qa2+ 55. Kc5 Qa3+ 56. Kc4 Qa4+ 57. Kc3 Qa1+ $11 (57... Qa3+ 58. Kc4 $11)) 45... Qc7 {[%emt 0:00:43]} 46. Qf2 {[%emt 0:00:00]} (46. Qxa7 Qxc2+ 47. Qf2 Qxf2+ 48. Rxf2 (48. Kxf2 Rg7 $18) 48... Rg7 $16) 46... Kg7 {[%emt 0:01:40]} 47. c4 {[%emt 0:00:00]} ({Weaker is} 47. Qxa7 Qxc2+ 48. Qf2 Qc7 $18) 47... a6 {[%emt 0:04:25]} 48. Rf8 {[%emt 0:00:00]} Qd7 {[%emt 0:04:35]} 49. Rb8 {[%emt 0:00:00]} Rf6 {[%emt 0:00:45]} (49... Kh7 $142 50. Rf8 Kg7) 50. Qe3 {[%emt 0:00:00]} Kg6 {[%emt 0:04:00]} (50... Qc7 $142) 51. Qe2 $18 {[%emt 0:00:00]} Qf7 {[%emt 0:01:02]} 52. Qg4+ {[%emt 0:01:39]} Kh7 {[%emt 0:00:06]} 53. Qh3+ {[%emt 0:00:10]} Kg6 {[%emt 0:01:25]} 54. Rh8 {[%emt 0:00:40]} Rf2+ {[%emt 0:00:21]} 55. Kg1 {[%emt 0:00:01]} 1-0

[Event "45th FIDE Olympiad 2024"]
[Site "Budapest"]
[Date "2024.09.18"]
[Round "7.44"]
[White "Motlomelo, Lihloela"]
[Black "Kalka, Shiva"]
[Result "0-1"]
[WhiteElo "1696"]
[BlackElo "1849"]
[PlyCount "106"]
[EventDate "2024.09.05"]
[EventType "team-tourn"]
[EventCountry "HUN"]
[WhiteTeam "Lesotho"]
[BlackTeam "Suriname"]
[WhiteTeamCountry "LES"]
[TimeControl "40/5400+30:1800+30"]

1. e4 c5 2. Nf3 e6 3. d4 cxd4 4. Nxd4 Nc6 5. Nc3 Qc7 6. Be3 a6 7. Be2 b5 8. Qd2 Bb7 9. f3 Nf6 10. O-O-O Bb4 11. Kb1 Rc8 12. Nxc6 Bxc6 13. a3 Be7 14. g4 O-O 15. g5 Ne8 16. Na2 a5 17. Bd3 d5 18. h4 Nd6 19. Bf4 Qb7 20. Bxd6 Bxd6 21. exd5 Bxd5 22. Be4 Bxe4 23. fxe4 Bc7 24. Qe1 Qc6 25. Qe2 Be5 26. Rh3 Qc5 27. Rb3 Rb8 28. Qe3 Qc4 29. Qd3 Qc6 30. Qe2 Rfc8 31. Rbd3 f6 32. gxf6 Bxf6 33. h5 Qc5 34. c3 Qe5 35. h6 g6 36. Qg2 b4 37. cxb4 axb4 38. Nxb4 Rc4 39. Re3 Bg5 40. Re2 Bxh6 41. Qh2 Bf4 42. Qg2 Rd4 43. Rf1 Qd6 44. Qf3 g5 45. Rg2 Kh8 46. e5 Bxe5 47. Rxg5 Rd2 48. Rf2 Rxf2 49. Qxf2 Rf8 50. Qe1 Bf6 51. Rh5 Qd4 52. Rh2 Rg8 53. Rh1 Qxb2# {0-} 0-1

[Event "45th FIDE Olympiad 2024"]
[Site "Budapest"]
[Date "2024.09.18"]
[Round "7.45"]
[White "Suleymanli, Aydin"]
[Black "Makhnev, Denis"]
[Result "1-0"]
[ECO "C78"]
[WhiteElo "2632"]
[BlackElo "2551"]
[Annotator "TA"]
[PlyCount "93"]
[EventDate "2024.09.05"]
[EventType "team-tourn"]
[EventCountry "HUN"]
[SourceTitle "playchess.com"]
[Source "ChessBase"]
[SourceQuality "1"]
[WhiteTeam "Azerbaijan"]
[BlackTeam "Kazakhstan"]
[WhiteTeamCountry "AZE"]
[BlackTeamCountry "KAZ"]
[TimeControl "40/5400+30:1800+30"]

{[%evp 13,93,25,38,28,37,40,33,0,25,0,-11,-66,-53,-77,-72,-80,-76,-70,-46,-49,-45,-60,-72,-72,-67,-80,-41,-66,-68,-85,-38,-60,0,0,0,0,0,-47,-6,-7,0,0,9,6,8,10,4,0,0,0,52,51,48,52,39,43,158,144,165,152,158,152,147,164,158,165,158,157,251,166,170,173,178,172,278,241,270,247,229,182,397,370]} 1. e4 {[%emt 0:00:10]} e5 {[%emt 0:00:07]} 2. Nf3 {[%emt 0:00:12]} Nc6 {[%emt 0:00:07]} 3. Bb5 {[%emt 0:00:04]} a6 {[%emt 0:00:08]} 4. Ba4 {[%emt 0:00:04]} Nf6 {[%emt 0:00:07]} 5. O-O {[%emt 0:00:07]} Bc5 {[%emt 0:00:06]} 6. c3 {[%emt 0:01:13]} O-O {[%emt 0:00:09]} 7. d4 {[%emt 0:00:43]} Ba7 {[%emt 0:00:09]} 8. Bg5 {[%emt 0:00:49]} h6 {[%emt 0:00:09]} 9. Bh4 {[%emt 0:00:14]} exd4 {[%emt 0:00:08]} 10. Re1 {[%emt 0:09:07] [#] Black must now prevent e5. White is slightly better.} d6 {[%emt 0:00:57]} 11. Nxd4 {[%emt 0:04:47]} (11. Bxc6 $5 bxc6 12. Nxd4 $14) 11... Ne5 {[%emt 0:11:12]} 12. Bg3 {[%emt 0:17:39]} (12. Bc2 $11) 12... Bg4 {[%emt 0:09:17]} 13. Qd2 {[%emt 0:06:00]} Nh5 {[%emt 0:03:10]} 14. Bd1 {[%emt 0:06:12]} Nxg3 {[%emt 0:01:18]} 15. hxg3 {[%emt 0:04:18]} h5 {[%emt 0:11:04]} 16. Na3 {[%emt 0:04:00]} Re8 {[%emt 0:01:42]} 17. Nac2 {[%emt 0:05:48]} Nc4 {[%emt 0:07:28][%csl LRb2,LRd2]} 18. Qc1 {[%emt 0:00:27]} Bxd1 {[%emt 0:12:59]} 19. Qxd1 {[%emt 0:00:26]} g6 {[%emt 0:01:00]} 20. b3 {[%emt 0:13:11]} Ne5 {[%emt 0:00:28]} 21. Qd2 {[%emt 0:01:36]} Ng4 {[%emt 0:05:52]} (21... h4 $17 22. gxh4 Qxh4) 22. Qf4 {[%emt 0:05:33]} Qf6 {[%emt 0:02:33]} ({Black should play} 22... c5 $15 23. Nf3 c4) 23. f3 $11 {[%emt 0:01:50]} Qxf4 {[%emt 0:02:36]} 24. gxf4 {[%emt 0:00:03]} Nf6 {[%emt 0:00:15]} 25. g3 {[%emt 0:01:39]} (25. Kf2 $11 {deserves consideration.}) 25... d5 {[%emt 0:06:00]} (25... h4 $5 26. g4 c5 $17) 26. e5 {[%emt 0:00:29]} Nd7 {[%emt 0:00:08][%cal Bf6d7,Bd7b6,Bb6a4][%mdl 32]} 27. Kg2 {[%emt 0:00:35]} Rad8 {[%emt 0:07:25]} 28. Rad1 {[%emt 0:00:35][%cal Ba1d1,Bd1d3,Bd3d2][%mdl 32]} c6 {[%emt 0:00:36]} 29. b4 {[%emt 0:04:38]} Nb6 {[%emt 0:00:39]} 30. f5 {[%emt 0:01:37]} Na4 {[%emt 0:01:14]} 31. Rd3 {[%emt 0:02:10]} Rc8 {[%emt 0:03:31]} (31... c5 $11 32. bxc5 Nxc5) 32. fxg6 $14 {[%emt 0:02:52]} fxg6 {[%emt 0:00:05]} 33. f4 $36 {[%emt 0:00:32][%mdl 2048] White fights for an advantage.} c5 {[%emt 0:04:06]} 34. Nf3 {[%emt 0:04:12]} cxb4 {[%emt 0:02:34]} (34... Red8 $14) 35. Nxb4 $16 {[%emt 0:00:14]} ({Weaker is} 35. Rxd5 bxc3 (35... Nxc3 36. Rd6 $14) 36. Rb1 (36. Rd6 Rc6 $11) 36... Rc7 $11) 35... Rxc3 {[%emt 0:02:44]} 36. Rd2 {[%emt 0:00:15]} ({Don't play} 36. Rxd5 $6 Bc5 37. Nd3 Be7 $14) 36... Nb6 {[%emt 0:00:45]} 37. Nxd5 {[%emt 0:00:40] White is more active.} Nxd5 {[%emt 0:00:37]} 38. Rxd5 {[%emt 0:00:02]} Bc5 {[%emt 0:01:29] [#]} 39. Rd7 $1 {[%emt 0:02:40]} Rc2+ {[%emt 0:02:59]} 40. Kh3 {[%emt 0:00:09]} Rc3 {[%emt 0:00:06]} (40... Re7 $16 {was called for.} 41. Red1 Rxa2) 41. Rf1 {[%emt 0:31:59][%cal Of3h4] Nh4! is the strong threat.} Re7 {[%emt 0:30:14]} 42. Rd8+ {[%emt 0:00:00]} Kg7 {[%emt 0:00:00]} 43. Ng5 {[%emt 0:00:00]} Rc2 {[%emt 0:00:00]} (43... Bb6 {was worth a try.} 44. Rd6 Bc7) 44. Rc8 $18 {[%emt 0:00:00] Strongly threatening Rd1.} Rc4 {[%emt 0:00:00]} 45. Rd1 {[%emt 0:00:00]} Rd4 {[%emt 0:00:00]} 46. Rb1 {[%emt 0:00:00]} Bb4 {[%emt 0:00:00]} (46... Rd5 47. Ne4 Be3 48. Rg8+ Kf7 (48... Kxg8 $2 {is the wrong capture.} 49. Nf6+ Kg7 50. Nxd5 $18)) 47. Rb3 {[%emt 0:00:00] Weighted Error Value: White=0.14 (very precise) /Black=0.26 (precise) .  Mistake:       	White=2     	Black=7      Inaccurate:     	White=2     	Black=2      OK:         	White=15    	Black=19     Best:        	White=3     	Black=3      Strong:       	White=1     	---} 1-0

[Event "45th FIDE Olympiad 2024"]
[Site "Budapest"]
[Date "2024.09.18"]
[Round "7.45"]
[White "Ah Kye, Benitot"]
[Black "Al Maashani, Amer"]
[Result "0-1"]
[WhiteElo "1815"]
[BlackElo "1979"]
[PlyCount "80"]
[EventDate "2024.09.05"]
[EventType "team-tourn"]
[EventCountry "HUN"]
[WhiteTeam "Mauritius"]
[BlackTeam "Oman"]
[WhiteTeamCountry "MRI"]
[BlackTeamCountry "OMN"]
[TimeControl "40/5400+30:1800+30"]

1. e4 c5 2. Nf3 g6 3. d4 cxd4 4. Nxd4 Nf6 5. Nc3 d6 6. Be3 Nc6 7. f3 h5 8. Qd2 Nxd4 9. Qxd4 Bg7 10. O-O-O O-O 11. Qd2 Be6 12. Kb1 Rc8 13. Bd4 Kh7 14. h3 Qa5 15. a3 Nd7 16. Bxg7 Kxg7 17. g4 Rh8 18. Be2 Nb6 19. f4 Bc4 20. Qd4+ f6 21. g5 Bxe2 22. gxf6+ exf6 23. Nxe2 Rc4 24. Qxd6 Re8 25. e5 Rc6 26. exf6+ Kf7 27. Qd3 Rxf6 28. Qb3+ Kg7 29. Nd4 Qd5 30. Qxd5 Nxd5 31. f5 gxf5 32. Nb5 Nb6 33. Nxa7 Re5 34. Rd8 f4 35. Nc8 Nxc8 36. Rxc8 f3 37. Rd8 f2 38. Rdd1 Rfe6 39. Kc1 Re1 40. Rf1 Rxf1 {0-} 0-1